Cogmind - Beta 9.6 @@@ ROGUE MODE // 2020.08.28 @ 16:18:59 Player: Cracklepappy Result: Destroyed by as-88603 with Assembled Rifle Performance ------------- Evolutions (0) 0 Regions Visited (2) 400 Robots Destroyed (23) 115 Value Destroyed (276) 276 Prototype IDs (0) 0 Alien Tech Used (0) 0 Bonus (0) 0 TOTAL SCORE: 791 Bonus ------- None Cogmind --------- Core Integrity 0/250 Matter 96/300 Energy 99/100 System Corruption 1% Temperature Cool (0) Movement Core (750) Ox14 Location -10/Mines Parts ------- > --- POWER (1) -------- (None) > --- PROPULSION (2) --- (None) > --- UTILITY (2) ------ Medium Storage Unit High-capacity Storage Unit > --- WEAPON (2) ------- Assault Rifle Mini Grenade Launcher > --- INVENTORY (16) --- Ion Engine Ion Engine Light Treads Light Treads Heat Sink High-capacity Matter Pod (0) Signal Interpreter Signal Interpreter Utility Shielding Light Armor Plating Assault Rifle Assault Rifle Light Assault Rifle Light Assault Rifle Datajack Mining Laser Peak State ------------ > --- POWER ------------ Ion Engine > --- PROPULSION ------- Wheel Wheel > --- UTILITY ---------- Small Storage Unit High-capacity Storage Unit > --- WEAPON ----------- Assault Rifle Assault Rifle > --- INVENTORY -------- Ion Engine Light Treads Light Treads Signal Interpreter Small Laser Light Assault Rifle Light Assault Rifle Datajack Datajack Mining Laser [Rating: 8] Favorites ----------- Power Ion Engine Engine Ion Engine Propulsion Wheel Wheel Wheel Utility High-capacity Storage Unit Storage High-capacity Storage Unit Weapon Assault Rifle Ballistic Gun Assault Rifle Launcher Mini Grenade Launcher Special Weapon Mining Laser Build | -11 -10 -10 ------- Run | Scr Mat Min Slots Evolved . | . . . Power . | . . . Propulsion . | . . . Utility . | . . . Weapon . | . . . Parts Attached 15 | 5 9 1 Power 1 | . 1 . Engine 1 | . 1 . Core . | . . . Reactor . | . . . Propulsion 2 | 2 . . Treads . | . . . Leg . | . . . Wheel 2 | 2 . . Hover . | . . . Flight . | . . . Utility 3 | 1 2 . Device . | . . . Storage 3 | 1 2 . Processor . | . . . Hackware . | . . . Protection . | . . . Artifact . | . . . Weapon 9 | 2 6 1 Energy Gun . | . . . Energy Cannon . | . . . Ballistic Gun 6 | 2 4 . Ballistic Cannon . | . . . Launcher 1 | . . 1 Special Weapon 2 | . 2 . Impact Weapon . | . . . Slashing Weapon . | . . . Piercing Weapon . | . . . Special Melee Weapon . | . . . Unidentified Prototypes . | . . . Parts Lost 3 | . . 3 Power 1 | . . 1 Propulsion 2 | . . 2 Utility . | . . . Weapon . | . . . Highest Loss Streak 3 | . . 3 Average Slot Usage (%) 96 | . 96 78 Engine 11 | . 11 14 Wheel 27 | . 28 7 Storage 27 | . 27 28 Ballistic Gun 26 | . 26 21 Special Weapon 1 | . 1 . Naked Turns . | . . . Heaviest Build 49 | 8 49 . Greatest Support 20 | 20 20 . Greatest Overweight (x) 2 | . 2 . Average Overweight (x) 1 | . 1 . Largest Inventory Capacity 16 | 6 16 16 Average Capacity 13 | 5 14 16 Most Carried 16 | 6 16 16 Average Carried 11 | 3 12 16 Final Capacity 16 | 6 16 16 Final Carried 16 | 6 16 16 Class Distribution -------------------- 100% | Mutant Dominant Class ---------------- Mutant | -10/Materials Mutant | -10/Mines Resources | -11 -10 -10 ----------- Run | Scr Mat Min Matter Collected 441 | 276 165 . Remotely . | . . . Salvage Created 487 | 108 285 94 Parts 29 | 2 24 3 Haulers Intercepted . | . . . Recyclers Shooed . | . . . Parts Field Recycled . | . . . Retrieved Matter . | . . . Parts Self-Destructed . | . . . Prevented . | . . . Kills | -11 -10 -10 ------- Run | Scr Mat Min Combat Hostiles Destroyed 17 | . 8 9 Guns 9 | . 8 1 AOE 8 | . . 8 Classes Destroyed 6 | 2 3 1 Tunneler 1 | 1 . . Recycler 2 | 1 1 . Watcher 3 | . 3 . Swarmer 6 | . 6 . Grunt 4 | . 2 2 Assembled 7 | . . 7 Best Kill Streak 9 | 1 4 9 Combat Bots Only 9 | . 4 9 Max Kills in Single Turn 6 | 1 1 6 Gunslinging . | . . . Exploded 6 | . . 6 Melee . | . . . Uniques/NPCs Destroyed . | . . . Combat | -11 -10 -10 -------- Run | Scr Mat Min Damage Taken 756 | . 293 463 Core 254 | . 95 159 Absorbed by Shields . | . . . Core Remaining (%) 100 | 100 . . Volleys Fired 53 | 5 39 9 Largest 2 | 2 2 2 Hottest 100 | 40 100 50 Shots Fired 100 | 10 72 18 Gun 90 | 10 66 14 Cannon . | . . . Launcher 4 | . . 4 Special 6 | . 6 . Kinetic 90 | 10 66 14 Thermal 6 | . 6 . Explosive 4 | . . 4 Electromagnetic . | . . . Robot Hit Streak 11 | 2 10 11 Robot Miss Streak 4 | 2 4 2 Penetration Max . | . . . Secondary Targets 2 | . 1 1 Max Gunslinging Chain 1 | . 1 1 Shots Hit Robots 57 | 6 37 14 Core Hits 34 | 2 15 17 Critical Hits . | . . . Critical Kills . | . . . Critical Parts Destroyed . | . . . Melee Attacks . | . . . Impact . | . . . Slashing . | . . . Piercing . | . . . Sneak Attacks . | . . . Combat Hostiles . | . . . Follow-up Attacks . | . . . Damage Inflicted 1294 | 61 503 730 Guns 709 | 61 503 145 Cannons . | . . . Explosions 585 | . . 585 Melee . | . . . Ramming . | . . . Kinetic 709 | 61 503 145 Thermal . | . . . Explosive 585 | . . 585 Electromagnetic . | . . . Impact . | . . . Slashing . | . . . Piercing . | . . . Highest Corruption 1 | . 1 1 Average Corruption 1 | . 1 1 Corruption Purged . | . . . Effects 3 | . 3 . Energy Discharges 2 | . 2 . Data Loss (minor) 1 | . 1 . Overload Shots . | . . . Overflow Damage 21 | . . 21 Projectiles . | . . . Explosions 21 | . . 21 Melee . | . . . Knockbacks . | . . . Impact . | . . . Kinetic . | . . . Secondary . | . . . Self-Inflicted Damage 122 | . . 122 Shots 3 | . . 3 Rammed . | . . . Targets Rammed . | . . . Kicked . | . . . Crushed . | . . . Highest Temperature 60 | . 60 16 Average Temperature 20 | . 23 7 Received Heat Transfer 108 | . 36 72 Siege Activations . | . . . Robots Corrupted . | . . . Combat Hostiles . | . . . Parts Fried . | . . . Impact Corruptions . | . . . Robots Melted . | . . . Combat Hostiles . | . . . Parts Melted . | . . . Heat Transferred . | . . . Parts Sabotaged . | . . . Parts Stolen . | . . . Parts Stripped . | . . . Power Chain Reactions . | . . . Missiles Intercepted . | . . . Alert | -11 -10 -10 ------- Run | Scr Mat Min Peak Influence 296 | 10 296 67 Average Influence 123 | 4 146 53 Maximum Alert Level 1 | . 1 . Low Security (%) 69 | 100 62 100 Level 1 30 | . 37 . Level 2 . | . . . Level 3 . | . . . Level 4 . | . . . Level 5 . | . . . High Security . | . . . Max Security . | . . . Squads Dispatched 1 | . 1 . Investigation . | . . . Extermination . | . . . Reinforcement 1 | . 1 . Assault . | . . . Garrison . | . . . Intercept . | . . . Construction Impeded . | . . . Haulers Reinforced . | . . . Stealth | -11 -10 -10 --------- Run | Scr Mat Min Distress Signals 2 | . 2 . Communications Jammed . | . . . Distress Signals . | . . . Times Spotted 35 | . 19 16 Peak Tracking Total 15 | . 7 15 Tactical Retreats 2 | . 2 . Traps | -11 -10 -10 ------- Run | Scr Mat Min Traps Triggered 1 | . 1 . Indirectly . | . . . Trap Hack Attempts . | . . . Triggered . | . . . Disarmed . | . . . Reprogrammed . | . . . Reused . | . . . Traps Extracted . | . . . Installed . | . . . Triggered . | . . . Machines | -11 -10 -10 ---------- Run | Scr Mat Min Machines Disabled . | . . . Max in Single Turn . | . . . Machines Sabotaged . | . . . Garrisons Compromised . | . . . Overloaded Fab Kills . | . . . Fab Network Shutdowns . | . . . Hacking | -11 -10 -10 --------- Run | Scr Mat Min Machines Accessed 2 | . 2 . Terminals 2 | . 2 . Fabricators . | . . . Repair Stations . | . . . Recycling Units . | . . . Scanalyzers . | . . . Garrison Access . | . . . Total Hacks 3 | . 3 . Successful 1 | . 1 . Failed 2 | . 2 . Catastrophic 1 | . 1 . Database Lockouts . | . . . Manual 2 | . 2 . Terminals 3 | . 3 . Fabricators . | . . . Repair Stations . | . . . Recycling Units . | . . . Scanalyzers . | . . . Garrison Access . | . . . Terminal Hacks 1 | . 1 . Locate Traps 1 | . 1 . Fabricator Hacks . | . . . Repair Station Hacks . | . . . Recycling Unit Hacks . | . . . Scanalyzer . | . . . Garrison Access Hacks . | . . . Unauthorized Hacks . | . . . Terminals . | . . . Fabricators . | . . . Repair Stations . | . . . Recycling Units . | . . . Scanalyzers . | . . . Garrison Access . | . . . Data Cores Recovered . | . . . Used . | . . . Hacking Detections 2 | . 2 . Full Trace Events . | . . . Feedback Events . | . . . Feedback Blocked . | . . . Robot Schematics Acquired . | . . . Robots Built . | . . . Matter . | . . . Time . | . . . Total Robot Build Rating . | . . . Part Schematics Acquired . | . . . Parts Built . | . . . Matter . | . . . Time . | . . . Total Part Build Rating . | . . . Parts Repaired . | . . . Time . | . . . Parts Recycled . | . . . Recycled Matter . | . . . Retrieved Matter . | . . . Retrieved Components . | . . . Parts Scanalyzed . | . . . Part Schematics Acquired . | . . . Parts Damaged . | . . . Bothacking | -11 -10 -10 ------------ Run | Scr Mat Min Used RIF Installer . | . . . Robots Hacked . | . . . Non-combat . | . . . Combat . | . . . Robot Hacks Applied . | . . . Relay Couplers Released . | . . . Robots Rewired . | . . . Allies Hacked . | . . . Hacks Repelled . | . . . Allies | -11 -10 -10 -------- Run | Scr Mat Min Total Allies . | . . . Largest Group . | . . . Highest-Rated Group . | . . . Highest-Rated Ally . | . . . Total Orders . | . . . Ally Attacks . | . . . Total Damage . | . . . Kills . | . . . Allies Corrupted . | . . . Allies Melted . | . . . Intel | -11 -10 -10 ------- Run | Scr Mat Min Robot Analysis Total . | . . . Derelict Logs Recovered . | . . . Drone Launches . | . . . Drone Recoveries . | . . . Exploration | -11 -10 -10 ------------- Run | Scr Mat Min Turns Passed 588 | 80 482 26 Spaces Moved 391 | 65 326 . Core 1 | 1 . . Treads . | . . . Legs . | . . . Wheels 390 | 64 326 . Hover . | . . . Flight . | . . . Fastest Speed 50 | 50 80 . Average Speed 93 | 79 96 . Slowest Speed 100 | 80 100 . Overloaded Moves . | . . . Propulsion Burnouts . | . . . Robots Hopped . | . . . Cave-ins Triggered . | . . . Exploration Rate (%) 18 | 4 45 5 Regions Visited 2 Branch Regions 1 Pre-discovered Areas . | . . . Known Exits Taken . | . . . Unknown Exits Taken 2 | 1 1 . Scrap Searched . | . . . Spaces Dug 6 | . 6 . Terrain Destroyed 43 | . 6 37 Melee . | . . . Projectile 6 | . 6 . AOE 37 | . . 37 Actions | -11 -10 -10 --------- Run | Scr Mat Min Total 499 | 80 409 10 Wait 13 | . 13 . Move 389 | 64 325 . Hop . | . . . Pick Up 22 | 6 16 . Fast Attach 6 | 5 1 . Attach 1 | . 1 . Detach . | . . . Swap 8 | . 7 1 Drop 7 | . 7 . Fire 53 | 5 39 9 Melee . | . . . Ram . | . . . Kick . | . . . Crush . | . . . Escape Stasis . | . . . Rewire . | . . . Trap . | . . . Miscellaneous . | . . . Route ------- -11/Scrapyard -10/Materials (discovered 2 exits: [*Mat] / [*Min]) -10/Mines History --------- Turn | Location | Event 14 | -11/Scrapyard | Discovered new exit (range 13) 81 | -11/Scrapyard | Entered Materials 317 | -10/Materials | Build established: Mutant 495 | -10/Materials | Discovered new exit (range 8) 524 | -10/Materials | Discovered new exit (range 10) 563 | -10/Materials | Entered Mines 564 | -10/Mines | Assembled infested the area 576 | -10/Mines | Core integrity fell below 50% 577 | -10/Mines | Met a Derelict bent on vengeance 585 | -10/Mines | Core integrity fell below 20% 589 | -10/Mines | Destroyed by as-88603 with Assembled Rifle Last Messages --------------- LOCATION=UNKNOWN GOAL=ESCAPE Something is scanning the area. 00564_ ALERT: Infestation in the mines, dispatching Demolisher response squad. 00566_ G-47 Trooper destroyed. 00566_ Switching to secondary target: G-34 Mercenary. 00569_ Wheel destroyed. 00580_ as-79058 destroyed. 00580_ Destroyed Asb. Hover Unit. 00583_ as-07646 destroyed. 00583_ as-42185 destroyed. 00583_ as-27883 destroyed. 00583_ G-34 Mercenary destroyed. 00583_ as-09646 destroyed. 00583_ as-39055 destroyed. 00583_ Ion Engine destroyed. 00583_ Destroyed Ion Engine. 00586_ Destroyed Asb. Hover Unit. 00589_ as-76634 destroyed. Map ----- +----------------------------------------------------+ | ?????????????????????????????????????????????????? | | ?????????????????????????????????????????????????? | | ?????????????????????????????????????????????????? | | ?????????????????????????????????????????????????? | | ?????????????????????????????????????????????????? | | ?????????????????????????????????????????????????? | | ?????????????????????????????????????????????????? | | ?????????????????????????????????????????????????? | | ?????????????????????????????????????????????????? | | ?????????????????????????????????????????????????? | | ?????????????????????????????????????????????????? | | ?????????????????????????????????????????????????? | | ?????????????????????????????????????????????????? | | ?????????????????????????????????????????????????? | | ?????????????????????????????????????????????????? | | ?????????????????????????????????????????????????? | | ????????????????? ???????????????????????????????? | | ????????????????? ??????????????????????????????? | | ????????????????""""?????????????????????????????? | | ????????????????"""" ????????????????????????????? | | ?????????????????""" ???????????????????????????? | | ?????????????????? ?###??????????????????????? | | ???????????????????? ## ####???????????????????? | | ?????????????????????# ### ###?????????????? | | ?????????????????????# #?????????????? | | ??????????????????????# @[ #?????????????? | | ????????????????? % #?????????????? | | ????????????????##### = #?????????????? | | ??????????????????? #######?????????????? | | ??????????????????# aa #???????????????????? | | ??????????????????## # ###???????????????????? | | ???????????????????# a #?????????????????????? | | ???????????????????## ####a#?????????????????????? | | ????????????????????##???? #?????????????????????? | | ??????????????????????????a#?????????????????????? | | ??????????????????????????a#?????????????????????? | | ?????????????????????????? #?????????????????????? | | ?????????????????????????? ?????????????????????? | | ?????????????????????????? ?????????????????????? | | ??????????????????????????a#?????????????????????? | | ?????????????????????????????????????????????????? | | ?????????????????????????????????????????????????? | | ?????????????????????????????????????????????????? | | ?????????????????????????????????????????????????? | | ?????????????????????????????????????????????????? | | ?????????????????????????????????????????????????? | | ?????????????????????????????????????????????????? | | ?????????????????????????????????????????????????? | | ?????????????????????????????????????????????????? | | ?????????????????????????????????????????????????? | +----------------------------------------------------+ Best States ------------- Heat Dissipation 25 Energy Generation 10 Energy Capacity 250 Matter Stores 300 Matter Capacity 300 Sight Range 16 Terrain Scan Density 10 Evasion (%) 44 Item Schematics ----------------- None Robot Schematics ------------------ None Fabricated ------------ Nothing Alien Tech Used ----------------- None Achievements -------------- None Challenges ------------ None Game ------ Seed ChargeGlidesysDoublenader Manual? 0 Play Time 00:11:04 Cumulative 146.6 hours Start 2020.08.28 @ 15:59:36 End 2020.08.28 @ 16:18:59 Sessions 1 Manual Loads 0 Difficulty Rogue Special Mode None Game No. 178 Rogue 178 Adventurer 0 Explorer 0 Win Type - Total 2 Types 2/0/0/0/0/0/0 Lore% 58 Gallery% 69 Achievement% 51 Wizard Run 0 Options --------- ASCII 0 Keyboard 0 Movement Numpad Keybinds 0 Fullscreen 2 Font 24/Smallcaps Map View 76x50 Tactical HUD 1 Map Filters NONE Filters NONE Steam 1 RUN: e4b8b3f1-6ec2-4349-abec-14f3ea1cb5be